fUSD/lending_fUSD_20260518
["ID","MTS","AMOUNT","RATE_DAILY","PERIOD"]
[422550395,1779061846000,-405.51,0.00028979,30]
[422550401,1779061846000,-221.71,0.00028979,30]
[422550397,1779061846000,-224.65,0.00028979,30]
[422550396,1779061846000,-642.12,0.00028979,30]
[422550402,1779061846000,-228.02,0.00028979,30]
[422550399,1779061846000,-393.63,0.00028979,30]
[422550403,1779061846000,-349.25,0.00029,7]
[422550400,1779061846000,-652.9,0.00028979,30]
[422550398,1779061846000,-226.96,0.00028979,30]
[422550405,1779061846000,-215.0785988,0.00029,7]
[422550404,1779061846000,-509.70236039,0.00029,2]
[422550408,1779061846000,-405.51,0.0002901,2]
[422550413,1779061846000,-652.9,0.0002901,2]
[422550447,1779061846000,-652.9,0.00029105,2]
[422550410,1779061846000,-224.65,0.0002901,2]
[422550406,1779061846000,-215.0785988,0.00029,30]
[422550412,1779061846000,-393.63,0.0002901,2]
[422550411,1779061846000,-226.96,0.0002901,2]
[422550407,1779061846000,-504.0,0.00029003,4]
[422550409,1779061846000,-642.12,0.0002901,2]
[422550414,1779061846000,-221.71,0.0002901,2]
[422550416,1779061846000,-405.51,0.00029042,7]
[422550417,1779061846000,-642.12,0.00029042,7]
[422550420,1779061846000,-393.63,0.00029042,7]
[422550423,1779061846000,-228.02,0.00029042,7]
[422550450,1779061846000,-600.0,0.00029124,60]
[422550435,1779061846000,-151.0,0.000291,7]
[422550456,1779061846000,-652.9,0.00029137,7]
[422550490,1779061846000,-642.16,0.00029232,7]
[422550485,1779061846000,-228.02,0.00029201,2]
[422550487,1779061846000,-324.44835277,0.00029224,2]
[422550488,1779061846000,-151.0,0.00029232,7]
[422550498,1779061846000,-1000.0,0.00029313,7]
[422550496,1779061846000,-228.15,0.00029232,7]
[422550495,1779061846000,-221.87,0.00029232,7]
[422550497,1779061846000,-1000.0,0.00029299,7]
[422550505,1779061846000,-1000.0,0.00029595,7]
[422550504,1779061846000,-1000.0,0.00029553,7]
[422550500,1779061846000,-7308.14,0.000295,14]
[422550506,1779061846000,-1000.0,0.00029606,7]
[422550502,1779061846000,-1572.578401,0.000295,2]
[422550501,1779061846000,-151.0,0.000295,7]
[422550503,1779061846000,-150.0,0.00029534,2]
[422550508,1779061846000,-1000.0,0.00029643,7]
[422550509,1779061846000,-1000.0,0.00029644,7]
[422550511,1779061846000,-1000.0,0.00029698,7]
[422550507,1779061846000,-504.0,0.00029625,4]
[422550510,1779061846000,-1100.0,0.00029672,60]
[422550513,1779061846000,-1000.0,0.00029735,7]
[422550512,1779061846000,-1000.0,0.00029716,7]
[422550516,1779061846000,-1000.0,0.00029777,7]
[422550515,1779061846000,-1000.0,0.00029752,7]
[422550514,1779061846000,-1000.0,0.00029746,7]
[422550449,1779061846000,-228.02,0.00029105,2]
[422550517,1779061846000,-1000.0,0.00029791,7]
[422550489,1779061846000,-405.64,0.00029232,7]
[422550492,1779061846000,-227.05,0.00029232,7]
[422550499,1779061846000,-1000.0,0.00029479,7]
[422550491,1779061846000,-224.68,0.00029232,7]
[422550455,1779061846000,-393.63,0.00029137,7]
[422550483,1779061846000,-221.71,0.00029201,2]
[422550462,1779061846000,-163.6546881,0.00029165,7]
[422550461,1779061846000,-178.61922885,0.00029165,7]
[422550464,1779061846000,-405.51,0.00029169,30]
[422550465,1779061846000,-642.12,0.00029169,30]
[422550460,1779061846000,-1000.0,0.00029163,7]
[422550463,1779061846000,-151.44995553,0.00029165,7]
[422550458,1779061846000,-228.02,0.00029137,7]
[422550459,1779061846000,-150.54389862,0.00029146,7]
[422550466,1779061846000,-224.65,0.00029169,30]
[422550468,1779061846000,-393.63,0.00029169,30]
[422550471,1779061846000,-228.02,0.00029169,30]
[422550476,1779061846000,-405.51,0.00029201,2]
[422550457,1779061846000,-221.71,0.00029137,7]
[422550482,1779061846000,-652.9,0.00029201,2]
[422550470,1779061846000,-221.71,0.00029169,30]
[422550480,1779061846000,-226.96,0.00029201,2]
[422550493,1779061846000,-393.67,0.00029232,7]
[422550481,1779061846000,-393.63,0.00029201,2]
[422550467,1779061846000,-226.96,0.00029169,30]
[422550479,1779061846000,-224.65,0.00029201,2]
[422550478,1779061846000,-642.12,0.00029201,2]
[422550474,1779061846000,-151.0,0.00029201,7]
[422550472,1779061846000,-923.85,0.000292,7]
[422550494,1779061846000,-652.99,0.00029232,7]
[422550469,1779061846000,-652.9,0.00029169,30]
[422550473,1779061846000,-151.0,0.00029201,7]
[422550555,1779061847000,-1000.0,0.00030013,7]
[422550561,1779061847000,-151.0,0.000301,7]
[422550559,1779061847000,-188.96646728,0.00030037,2]
[422550553,1779061847000,-182.15141979,0.0003,2]
[422550576,1779061847000,-151.0,0.00030103,30]
[422550557,1779061847000,-150.0,0.00030037,2]
[422550550,1779061847000,-182.1514198,0.0003,2]
[422550548,1779061847000,-151.0,0.0003,7]
[422550554,1779061847000,-1500.0,0.0003,2]
[422550563,1779061847000,-151.0,0.000301,7]
[422550556,1779061847000,-150.0,0.00030037,2]
[422550552,1779061847000,-182.15141979,0.0003,2]
[422550564,1779061847000,-2323.0,0.000301,7]
[422550569,1779061847000,-1211.23169028,0.000301,2]
[422550565,1779061847000,-1061.14,0.000301,30]
[422550562,1779061847000,-151.0,0.000301,7]
[422550566,1779061847000,-213.38063288,0.000301,2]
[422550567,1779061847000,-1211.23169029,0.000301,2]
[422550579,1779061847000,-153.0,0.00030107,30]
[422550568,1779061847000,-1211.23169028,0.000301,2]
[422550570,1779061847000,-741.0,0.000301,30]
[422550571,1779061847000,-154.0,0.000301,30]
[422550578,1779061847000,-235.0,0.00030107,30]
[422550519,1779061847000,-1000.0,0.00029797,7]
[422550573,1779061847000,-516.0,0.00030103,30]
[422550551,1779061847000,-200.0,0.0003,2]
[422550560,1779061847000,-349.25,0.000301,7]
[422550547,1779061847000,-151.0,0.0003,7]
[422550518,1779061847000,-414.77922358,0.00029794,7]
[422550546,1779061847000,-151.0,0.0003,7]
[422550574,1779061847000,-165.0,0.00030103,30]
[422550520,1779061847000,-707.170382,0.00029797,7]
[422550521,1779061847000,-707.170382,0.00029797,7]
[422550524,1779061847000,-151.0,0.00029797,7]
[422550531,1779061847000,-1000.0,0.00029966,7]
[422550522,1779061847000,-707.170382,0.00029797,7]
[422550527,1779061847000,-1000.0,0.00029891,7]
[422550528,1779061847000,-152.0,0.00029909,4]
[422550525,1779061847000,-151.0,0.00029797,7]
[422550523,1779061847000,-707.170382,0.00029797,7]
[422550530,1779061847000,-1000.0,0.00029928,7]
[422550529,1779061847000,-1000.0,0.00029913,7]
[422550526,1779061847000,-1000.0,0.00029815,7]
[422550532,1779061847000,-1000.0,0.0002997,7]
[422550533,1779061847000,-169.84,0.00029975,2]
[422550536,1779061847000,-500.0,0.00029999,2]
[422550535,1779061847000,-500.0,0.00029999,2]
[422550534,1779061847000,-243.11178453,0.00029999,2]
[422550537,1779061847000,-201.1916424,0.00029999,2]
[422550544,1779061847000,-650.0,0.0003,2]
[422550539,1779061847000,-500.0,0.00029999,2]
[422550540,1779061847000,-500.0,0.00029999,2]
[422550541,1779061847000,-159.14670561,0.00029999,2]
[422550538,1779061847000,-150.44521919,0.00029999,2]
[422550543,1779061847000,-500.0,0.0003,2]
[422550542,1779061847000,-12817.94838485,0.0003,10]
[422550545,1779061847000,-194.168,0.0003,22]
[422550549,1779061847000,-151.0,0.0003,7]
[422550577,1779061847000,-2493.0,0.00030103,30]
[422550558,1779061847000,-150.0,0.00030037,2]
[422550591,1779061847000,-192.14,0.00030137,2]
[422550615,1779061847000,-161.63455195,0.00030524,7]
[422550607,1779061847000,-357.2384577,0.00030524,7]
[422550613,1779061847000,-327.3093762,0.00030524,7]
[422550611,1779061847000,-158.74423393,0.00030524,7]
[422550614,1779061847000,-302.89991106,0.00030524,7]
[422550618,1779061847000,-927.0,0.00030819,2]
[422550620,1779061847000,-1354.0,0.00030819,2]
[422550621,1779061847000,-930.0,0.00030819,2]
[422550619,1779061847000,-625.0,0.00030819,2]
[422550629,1779061847000,-5013.16891626,0.00031,14]
[422550624,1779061847000,-504.0,0.00030868,6]
[422550626,1779061847000,-1809.31081672,0.00030956,2]
[422550627,1779061847000,-1350.3132814,0.00030968,14]
[422550623,1779061847000,-564.20669527,0.0003085,2]
[422550622,1779061847000,-417.0,0.00030819,2]
[422550625,1779061847000,-254.41333478,0.0003092,30]
[422550628,1779061847000,-500.0,0.00030998,2]
[422550631,1779061847000,-150.0,0.00031011,2]
[422550630,1779061847000,-2294.97108374,0.00031,14]
[422550633,1779061847000,-243.03,0.00031096,2]
[422550632,1779061847000,-200.0,0.00031096,2]
[422550634,1779061847000,-741.0,0.000311,30]
[422550636,1779061847000,-173.0,0.000311,30]
[422550635,1779061847000,-154.0,0.000311,30]
[422550637,1779061847000,-516.0,0.00031103,30]
[422550638,1779061847000,-165.0,0.00031103,30]
[422550575,1779061847000,-158.0,0.00030103,30]
[422550612,1779061847000,-166.03046081,0.00030524,7]
[422550608,1779061847000,-247.97568767,0.00030524,7]
[422550572,1779061847000,-173.0,0.000301,30]
[422550610,1779061847000,-187.18322031,0.00030524,2]
[422550609,1779061847000,-151.26795692,0.00030524,7]
[422550581,1779061847000,-2000.0,0.00030127,14]
[422550587,1779061847000,-96420.49519336,0.0003013,7]
[422550592,1779061847000,-200.0,0.00030137,2]
[422550590,1779061847000,-150.0,0.00030137,2]
[422550582,1779061847000,-2000.0,0.00030127,14]
[422550583,1779061847000,-2000.0,0.00030127,14]
[422550585,1779061847000,-2000.0,0.00030127,14]
[422550584,1779061847000,-2000.0,0.00030127,14]
[422550586,1779061847000,-711.47565024,0.00030127,14]
[422550589,1779061847000,-195.4909931,0.00030136,2]
[422550588,1779061847000,-151.29,0.00030136,7]
[422550593,1779061847000,-2000.0,0.00030137,14]
[422550594,1779061847000,-157.5719,0.00030137,2]
[422550580,1779061847000,-556.0,0.00030107,30]
[422550595,1779061847000,-324.44835277,0.00030137,2]
[422550604,1779061847000,-3429.70568903,0.000303,2]
[422550605,1779061847000,-301.08779724,0.00030504,7]
[422550606,1779061847000,-482.15270711,0.00030514,2]
[422550616,1779061847000,-4753.68656283,0.00030704,2]
[422550602,1779061847000,-1316.3,0.00030239,2]
[422550598,1779061847000,-160.0,0.00030137,3]
[422550617,1779061847000,-600.0,0.00030768,60]
[422550603,1779061847000,-504.0,0.00030247,5]
[422550600,1779061847000,-923.85,0.000302,7]
[422550596,1779061847000,-254.41333478,0.00030137,30]
[422550599,1779061847000,-2732.94,0.000302,2]
[422550597,1779061847000,-928.0,0.00030137,120]
[422550601,1779061847000,-150.0,0.00030205,2]
[422550689,1779061848000,-156.01710442,0.00032012,7]
[422550670,1779061848000,-159.70610433,0.00031455,7]
[422550671,1779061848000,-203.08477273,0.00031455,7]
[422550676,1779061848000,-864.78058953,0.0003163,2]
[422550672,1779061848000,-179.5234613,0.00031455,7]
[422550668,1779061848000,-454.34986659,0.00031429,7]
[422550678,1779061848000,-2815.4926,0.00031644,2]
[422550677,1779061848000,-693.3919763,0.0003163,2]
[422550667,1779061848000,-490.9640643,0.00031429,7]
[422550675,1779061848000,-150.0,0.00031507,2]
[422550679,1779061848000,-254.41333478,0.00031703,30]
[422550688,1779061848000,-923.85,0.00032,7]
[422550682,1779061848000,-6598.12339915,0.00031807,2]
[422550681,1779061848000,-500.0,0.00031802,120]
[422550684,1779061848000,-5000.0,0.00031807,2]
[422550686,1779061848000,-5000.0,0.00031807,2]
[422550687,1779061848000,-160.0,0.00031809,3]
[422550685,1779061848000,-5000.0,0.00031807,2]
[422550690,1779061848000,-151.96399372,0.00032012,7]
[422550697,1779061848000,-329.30981595,0.00032012,7]
[422550698,1779061848000,-207.59705649,0.00032012,7]
[422550695,1779061848000,-158.20188361,0.00032012,7]
[422550691,1779061848000,-215.02825997,0.00032012,7]
[422550669,1779061848000,-323.26910391,0.00031429,7]
[422550680,1779061848000,-150.0,0.00031716,2]
[422550666,1779061848000,-332.06092162,0.00031429,7]
[422550656,1779061848000,-451.63169585,0.00031409,7]
[422550673,1779061848000,-504.0,0.0003149,6]
[422550640,1779061848000,-151.0,0.00031103,30]
[422550641,1779061848000,-2493.0,0.00031103,30]
[422550639,1779061848000,-158.0,0.00031103,30]
[422550643,1779061848000,-235.0,0.00031107,30]
[422550642,1779061848000,-159.04,0.00031106,7]
[422550645,1779061848000,-556.0,0.00031107,30]
[422550646,1779061848000,-331.265454,0.000312,7]
[422550644,1779061848000,-153.0,0.00031107,30]
[422550647,1779061848000,-325.35,0.000312,7]
[422550649,1779061848000,-325.35,0.000312,7]
[422550653,1779061848000,-349.25,0.000314,7]
[422550652,1779061848000,-1179.6387834,0.000314,2]
[422550648,1779061848000,-321.522352,0.000312,7]
[422550651,1779061848000,-1100.0,0.00031316,60]
[422550650,1779061848000,-700.97622003,0.00031245,120]
[422550693,1779061848000,-443.47936924,0.00032012,7]
[422550654,1779061848000,-220.89522212,0.00031409,7]
[422550655,1779061848000,-221.73968462,0.00031409,7]
[422550659,1779061848000,-296.08302181,0.00031429,7]
[422550657,1779061848000,-215.45807391,0.00031409,7]
[422550661,1779061848000,-495.95137533,0.00031429,7]
[422550660,1779061848000,-535.85768656,0.00031429,7]
[422550658,1779061848000,-220.02262786,0.00031409,7]
[422550665,1779061848000,-317.48846785,0.00031429,7]
[422550662,1779061848000,-281.30714707,0.00031429,7]
[422550664,1779061848000,-374.36644062,0.00031429,2]
[422550663,1779061848000,-302.53591383,0.00031429,7]
[422550674,1779061848000,-1000.0,0.000315,7]
[422550699,1779061848000,-447.44202931,0.00032012,7]
[422550683,1779061848000,-5000.0,0.00031807,2]
[422550694,1779061848000,-159.8992,0.00032012,7]
[422550724,1779061848000,-184.87486867,0.00032059,7]
[422550734,1779061848000,-190.01953399,0.00032059,7]
[422550725,1779061848000,-319.41220866,0.00032059,7]
[422550726,1779061848000,-406.16954546,0.00032059,7]
[422550736,1779061848000,-204.24285983,0.00032059,7]
[422550746,1779061848000,-359.04692259,0.00032059,7]
[422550747,1779061848000,-156.44708187,0.00032059,7]
[422550735,1779061848000,-178.17530338,0.00032059,7]
[422550740,1779061848000,-175.97877426,0.00032059,7]
[422550739,1779061848000,-157.35959517,0.00032059,7]
[422550737,1779061848000,-153.56552418,0.00032059,7]
[422550744,1779061848000,-158.1460391,0.00032059,7]
[422550727,1779061848000,-154.52280179,0.00032059,7]
[422550741,1779061848000,-221.83742877,0.00032059,7]
[422550738,1779061848000,-352.47026693,0.00032059,7]
[422550743,1779061848000,-190.13852254,0.00032059,7]
[422550742,1779061848000,-161.55434706,0.00032059,7]
[422550751,1779061848000,-154.0,0.000321,30]
[422550748,1779061848000,-203.2657453,0.00032059,7]
[422550750,1779061848000,-741.0,0.000321,30]
[422550749,1779061848000,-415.32245721,0.00032059,7]
[422550753,1779061848000,-516.0,0.00032103,30]
[422550754,1779061848000,-165.0,0.00032103,30]
[422550752,1779061848000,-173.0,0.000321,30]
[422550755,1779061848000,-158.0,0.00032103,30]
[422550696,1779061848000,-175.1957288,0.00032012,7]
[422550745,1779061848000,-193.84876851,0.00032059,7]
[422550733,1779061848000,-157.54115395,0.00032059,7]
[422550692,1779061848000,-441.79044424,0.00032012,7]
[422550732,1779061848000,-201.96423388,0.00032059,7]
[422550731,1779061848000,-185.14723158,0.00032059,7]
[422550700,1779061848000,-602.17559447,0.00032012,7]
[422550702,1779061848000,-343.70574825,0.00032012,7]
[422550703,1779061848000,-343.30517599,0.00032012,7]
[422550701,1779061848000,-430.91614782,0.00032012,7]
[422550704,1779061848000,-178.1811765,0.00032012,7]
[422550706,1779061848000,-440.04525572,0.00032012,7]
[422550705,1779061848000,-151.47830152,0.00032012,7]
[422550709,1779061848000,-196.46327907,0.00032019,7]
[422550708,1779061848000,-168.54697983,0.00032019,7]
[422550713,1779061848000,-714.47691541,0.00032033,7]
[422550712,1779061848000,-592.16604361,0.00032033,7]
[422550710,1779061848000,-179.11887911,0.00032019,7]
[422550707,1779061848000,-447.37723393,0.00032012,7]
[422550711,1779061848000,-185.60704055,0.00032019,7]
[422550729,1779061848000,-166.96541698,0.00032059,7]
[422550714,1779061848000,-743.927063,0.00032033,7]
[422550728,1779061848000,-158.39108512,0.00032059,5]
[422550723,1779061848000,-200.0,0.00032055,2]
[422550721,1779061848000,-605.79982212,0.00032033,7]
[422550720,1779061848000,-654.6187524,0.00032033,7]
[422550722,1779061848000,-484.90365586,0.00032033,7]
[422550730,1779061848000,-223.16480838,0.00032059,7]
[422550718,1779061848000,-476.23270178,0.00032033,7]
[422550717,1779061848000,-561.54966094,0.00032033,2]
[422550715,1779061848000,-562.61429414,0.00032033,7]
[422550716,1779061848000,-453.80387075,0.00032033,7]
[422550719,1779061848000,-498.09138244,0.00032033,7]
[422550843,1779061849000,-321.522352,0.00033263,17]
[422550835,1779061849000,-150.0,0.00033105,7]
[422550841,1779061849000,-150.0,0.00033176,7]
[422550842,1779061849000,-150.0,0.00033235,7]
[422550844,1779061849000,-1412.79499184,0.00033268,30]
[422550850,1779061849000,-150.0,0.00033302,2]
[422550848,1779061849000,-150.0,0.000333,7]
[422550849,1779061849000,-150.0,0.000333,7]
[422550852,1779061849000,-504.0,0.00033356,8]
[422550847,1779061849000,-331.265454,0.000333,17]
[422550836,1779061849000,-235.0,0.00033107,30]
[422550851,1779061849000,-150.0,0.0003333,7]
[422550831,1779061849000,-165.0,0.00033103,30]
[422550824,1779061849000,-3429.70568903,0.00033,2]
[422550832,1779061849000,-158.0,0.00033103,30]
[422550830,1779061849000,-516.0,0.00033103,30]
[422550834,1779061849000,-2493.0,0.00033103,30]
[422550839,1779061849000,-150.0,0.00033125,7]
[422550838,1779061849000,-556.0,0.00033107,30]
[422550840,1779061849000,-150.0,0.0003317,7]
[422550837,1779061849000,-153.0,0.00033107,30]
[422550828,1779061849000,-154.0,0.000331,30]
[422550829,1779061849000,-173.0,0.000331,30]
[422550825,1779061849000,-150.0,0.00033039,7]
[422550819,1779061849000,-152.0,0.00032944,5]
[422550845,1779061849000,-325.35,0.00033277,17]
[422550821,1779061849000,-150.0,0.00032974,7]
[422550822,1779061849000,-1162.3166985,0.00033,3]
[422550833,1779061849000,-151.0,0.00033103,30]
[422550846,1779061849000,-325.35,0.00033277,17]
[422550867,1779061849000,-150.0,0.00033756,7]
[422550853,1779061849000,-150.0,0.00033365,7]
[422550823,1779061849000,-571.709251,0.00033,14]
[422550881,1779061849000,-150.0,0.00033952,7]
[422550883,1779061849000,-504.0,0.00033978,9]
[422550882,1779061849000,-150.0,0.00033967,7]
[422550884,1779061849000,-150.0,0.00034017,7]
[422550879,1779061849000,-500.0,0.00033902,120]
[422550876,1779061849000,-150.0,0.00033821,7]
[422550877,1779061849000,-150.0,0.00033839,7]
[422550878,1779061849000,-150.0,0.00033886,7]
[422550875,1779061849000,-417.0,0.00033819,2]
[422550869,1779061849000,-150.0,0.00033756,7]
[422550874,1779061849000,-930.0,0.00033819,2]
[422550873,1779061849000,-1354.0,0.00033819,2]
[422550872,1779061849000,-625.0,0.00033819,2]
[422550870,1779061849000,-150.0,0.00033817,7]
[422550871,1779061849000,-927.0,0.00033819,2]
[422550868,1779061849000,-150.0,0.00033756,7]
[422550865,1779061849000,-150.0,0.00033691,7]
[422550866,1779061849000,-4753.68656283,0.000337,2]
[422550861,1779061849000,-150.0,0.00033561,7]
[422550860,1779061849000,-1809.31081672,0.00033522,2]
[422550864,1779061849000,-150.0,0.00033686,7]
[422550859,1779061849000,-150.0,0.00033507,7]
[422550862,1779061849000,-150.0,0.00033574,7]
[422550863,1779061849000,-150.0,0.00033626,7]
[422550856,1779061849000,-1047.49797175,0.00033445,10]
[422550855,1779061849000,-150.0,0.0003343,7]
[422550858,1779061849000,-150.0,0.00033495,7]
[422550854,1779061849000,-150.0,0.00033405,7]
[422550857,1779061849000,-160.0,0.00033481,3]
[422550880,1779061849000,-1749.10349188,0.0003393,30]
[422550820,1779061849000,-1100.0,0.0003296,60]
[422550818,1779061849000,-150.0,0.00032909,7]
[422550782,1779061849000,-151.0,0.00032781,7]
[422550781,1779061849000,-151.0,0.00032781,7]
[422550780,1779061849000,-151.0,0.00032781,7]
[422550786,1779061849000,-291.112548,0.00032781,7]
[422550784,1779061849000,-151.0,0.00032781,7]
[422550787,1779061849000,-151.0,0.00032781,7]
[422550785,1779061849000,-151.0,0.00032781,7]
[422550776,1779061849000,-151.0,0.00032781,7]
[422550777,1779061849000,-151.0,0.00032781,7]
[422550775,1779061849000,-138186.72784239,0.00032781,7]
[422550772,1779061849000,-504.0,0.00032734,8]
[422550769,1779061849000,-752.71949309,0.00032616,7]
[422550770,1779061849000,-893.09614426,0.00032637,7]
[422550771,1779061849000,-757.24977765,0.00032637,7]
[422550767,1779061849000,-301.99499184,0.00032485,30]
[422550766,1779061849000,-600.0,0.00032412,60]
[422550774,1779061849000,-268073.69461154,0.00032781,7]
[422550765,1779061849000,-351.37329644,0.000324,2]
[422550762,1779061849000,-439.29,0.00032201,10]
[422550768,1779061849000,-150.0,0.00032562,2]
[422550764,1779061849000,-1461.03534796,0.00032297,2]
[422550773,1779061849000,-48080.51265074,0.00032781,7]
[422550763,1779061849000,-1316.3,0.0003221,5]
[422550758,1779061849000,-235.0,0.00032107,30]
[422550757,1779061849000,-2493.0,0.00032103,30]
[422550756,1779061849000,-151.0,0.00032103,30]
[422550760,1779061849000,-556.0,0.00032107,30]
[422550759,1779061849000,-153.0,0.00032107,30]
[422550761,1779061849000,-504.0,0.00032112,7]
[422550783,1779061849000,-151.0,0.00032781,7]
[422550778,1779061849000,-151.0,0.00032781,7]
[422550817,1779061849000,-1000.0,0.00032877,30]
[422550788,1779061849000,-151.0,0.00032781,7]
[422550779,1779061849000,-151.0,0.00032781,7]
[422550826,1779061849000,-150.0,0.00033087,7]
[422550816,1779061849000,-151.000004,0.00032877,7]
[422550815,1779061849000,-151.0,0.00032877,7]
[422550807,1779061849000,-150.0,0.00032844,7]
[422550805,1779061849000,-150.0,0.00032844,7]
[422550802,1779061849000,-150.0,0.00032844,7]
[422550803,1779061849000,-150.0,0.00032844,7]
[422550806,1779061849000,-150.0,0.00032844,7]
[422550811,1779061849000,-151.0,0.00032877,7]
[422550812,1779061849000,-151.0,0.00032877,7]
[422550809,1779061849000,-227.7807774,0.00032876,2]
[422550814,1779061849000,-151.0,0.00032877,7]
[422550804,1779061849000,-150.0,0.00032844,7]
[422550813,1779061849000,-188.132812,0.00032877,7]
[422550827,1779061849000,-741.0,0.000331,30]
[422550808,1779061849000,-150.0,0.00032844,7]
[422550810,1779061849000,-151.0,0.00032877,7]
[422550794,1779061849000,-707.170382,0.00032781,7]
[422550789,1779061849000,-151.0,0.00032781,7]
[422550791,1779061849000,-707.170382,0.00032781,7]
[422550793,1779061849000,-707.170382,0.00032781,7]
[422550790,1779061849000,-151.0,0.00032781,7]
[422550792,1779061849000,-707.170382,0.00032781,7]
[422550798,1779061849000,-150.0,0.00032844,7]
[422550795,1779061849000,-291.495724,0.00032781,7]
[422550800,1779061849000,-150.0,0.00032844,7]
[422550801,1779061849000,-150.0,0.00032844,7]
[422550797,1779061849000,-207.900653,0.00032781,7]
[422550796,1779061849000,-151.0,0.00032781,7]
[422550799,1779061849000,-150.0,0.00032844,7]
[422550923,1779061850000,-500.0,0.00034198,60]
[422550919,1779061850000,-500.0,0.00034198,60]
[422550924,1779061850000,-500.0,0.00034198,60]
[422550920,1779061850000,-500.0,0.00034198,60]
[422550922,1779061850000,-500.0,0.00034198,60]
[422550928,1779061850000,-1179.6387834,0.00034233,2]
[422550921,1779061850000,-500.0,0.00034198,60]
[422550917,1779061850000,-500.0,0.00034198,60]
[422550926,1779061850000,-150.0,0.00034212,7]
[422550927,1779061850000,-150.0,0.00034212,7]
[422550930,1779061850000,-150.0,0.00034247,7]
[422550918,1779061850000,-500.0,0.00034198,60]
[422550925,1779061850000,-662.8497649,0.00034198,60]
[422550929,1779061850000,-1000.0,0.00034247,120]
[422550934,1779061850000,-896.77747135,0.00034369,2]
[422550940,1779061850000,-150.0,0.00034538,7]
[422550942,1779061850000,-850.21,0.00034544,60]
[422550941,1779061850000,-276.08,0.00034544,60]
[422550935,1779061850000,-719.04747942,0.00034369,2]
[422550933,1779061850000,-150.0,0.00034343,7]
[422550938,1779061850000,-150.0,0.00034503,7]
[422550936,1779061850000,-150.0,0.00034408,7]
[422550939,1779061850000,-150.0,0.00034528,7]
[422550937,1779061850000,-150.0,0.00034473,7]
[422550944,1779061850000,-2068.27,0.00034544,60]
[422550954,1779061850000,-150.0,0.00034734,7]
[422550943,1779061850000,-3244.34,0.00034544,60]
[422550916,1779061850000,-500.0,0.00034198,60]
[422550931,1779061850000,-150.0,0.00034277,7]
[422550914,1779061850000,-720.350276,0.00034198,60]
[422550899,1779061850000,-159.04,0.00034141,30]
[422550913,1779061850000,-500.0,0.00034198,60]
[422550885,1779061850000,-600.0,0.00034056,60]
[422550887,1779061850000,-150.0,0.00034082,7]
[422550886,1779061850000,-150.0,0.0003406,7]
[422550889,1779061850000,-154.0,0.000341,30]
[422550890,1779061850000,-173.0,0.000341,30]
[422550888,1779061850000,-741.0,0.000341,30]
[422550891,1779061850000,-516.0,0.00034103,30]
[422550893,1779061850000,-158.0,0.00034103,30]
[422550903,1779061850000,-189.94880761,0.00034175,3]
[422550892,1779061850000,-165.0,0.00034103,30]
[422550897,1779061850000,-153.0,0.00034107,30]
[422550895,1779061850000,-2493.0,0.00034103,30]
[422550896,1779061850000,-235.0,0.00034107,30]
[422550911,1779061850000,-150.0,0.0003419,2]